bitfinex-derivatives/quotes_SOLF0:USTF0_20250730
["timestamp","ask_amount","ask_price","bid_price","bid_amount"]
[1753887253344,5.69079528,180.44,180.38,5.5439]
[1753887253542,3.16,180.43,180.36,109.7]
[1753887254044,3.16,180.39,180.36,109.7]
[1753887254240,3.16,180.43,180.36,109.7]
[1753887254937,3.16,180.43,180.36,115.39079528]
[1753887255438,5.69079528,180.44,180.36,115.39079528]
[1753887255637,3.16,180.43,180.36,109.7]
[1753887255837,3.16,180.42,180.39,5.5434]
[1753887256148,3.16,180.42,180.36,109.7]
[1753887256645,3.16,180.42,180.36,115.39079528]
[1753887256838,3.16,180.42,180.41,5.543]
[1753887257036,5.69079528,180.45,180.36,109.7]
[1753887257239,3.16,180.44,180.36,109.7]
[1753887257440,3.16,180.44,180.4,5.5433]
[1753887258050,3.16,180.44,180.39,5.5435]
[1753887258541,3.16,180.44,180.36,109.7]
[1753887258757,3.16,180.42,180.39,5.5434]
[1753887258946,3.16,180.42,180.36,109.7]
[1753887259148,3.16,180.44,180.36,109.7]
[1753887259848,3.16,180.44,180.41,5.5427]
[1753887261263,3.16,180.44,180.42,5.5427]
[1753887261761,5.69079528,180.45,180.36,109.7]
[1753887261762,3.16,180.45,180.38,5.69079528]
[1753887262156,3.16,180.45,180.44,5.5421]
[1753887262666,3.16,180.45,180.36,109.7]
[1753887262855,3.16,180.45,180.37,5.69079528]
[1753887263055,3.16,180.45,180.44,5.5421]
[1753887263252,3.16,180.45,180.39,5.69079528]
[1753887263253,11.23139528,180.49,180.39,5.69079528]
[1753887263454,3.16,180.56,180.47,5.69079528]
[1753887263653,5.69079528,180.58,180.47,5.69079528]
[1753887263654,3.16,180.57,180.48,108.76]
[1753887264256,5.69079528,180.56,180.45,5.69079528]
[1753887264454,5.69079528,180.53,180.47,108.7]
[1753887264650,3.16,180.51,180.47,108.7]
[1753887264866,3.16,180.5,180.47,108.7]
[1753887265053,5.69079528,180.57,180.47,114.39079528]
[1753887265259,3.16,180.55,180.47,114.39079528]
[1753887265458,3.16,180.54,180.47,108.74]
[1753887265656,3.16,180.52,180.49,5.5403]
[1753887265856,3.16,180.55,180.47,108.74]
[1753887266358,5.69079528,180.54,180.45,108.7]
[1753887266551,3.16,180.53,180.45,108.7]
[1753887266755,8.6993,180.53,180.45,108.7]
[1753887266956,3.16,180.52,180.45,108.7]
[1753887267964,5.69079528,180.62,180.45,114.39079528]
[1753887267965,3.16,180.51,180.45,114.39079528]
[1753887268360,3.16,180.51,180.5,5.5402]
[1753887269066,3.14,180.5,180.46,5.69079528]
[1753887269361,3.14,180.49,180.46,5.69079528]
[1753887270165,3.14,180.49,180.48,5.5408]
[1753887270355,3.14,180.52,180.41,372.6]
[1753887270561,3.14,180.52,180.44,108.48]
[1753887271264,3.14,180.52,180.45,5.69079528]
[1753887271565,5.69079528,180.49,180.41,372.6]
[1753887271866,3.14,180.44,180.38,108.38]
[1753887272368,5.5423,180.43,180.38,108.38]
[1753887272570,3.14,180.41,180.38,108.38]
[1753887272866,3.14,180.42,180.38,108.38]
[1753887273068,5.5421,180.44,180.38,108.38]
[1753887273367,3.14,180.46,180.38,114.07079528]
[1753887273760,3.14,180.46,180.4,5.69079528]
[1753887273957,3.14,180.45,180.44,5.5418]
[1753887274157,3.14,180.48,180.4,5.69079528]
[1753887274369,3.14,180.46,180.38,108.38]
[1753887274664,5.5426,180.43,180.38,108.38]
[1753887274865,5.69079528,180.47,180.38,108.38]
[1753887274866,3.14,180.42,180.38,108.38]
[1753887275065,3.14,180.42,180.32,5.69079528]
[1753887275265,3.14,180.37,180.31,480.88]
[1753887275764,3.14,180.34,180.29,108.42]
[1753887276163,3.14,180.32,180.29,108.42]
[1753887276366,3.14,180.31,180.29,108.42]
[1753887276767,3.14,180.35,180.29,108.42]
[1753887276968,3.14,180.35,180.29,114.11079528]
[1753887277266,3.14,180.38,180.31,5.69079528]
[1753887277465,3.14,180.38,180.29,114.11079528]
[1753887277662,3.14,180.38,180.32,5.5455]
[1753887277870,8.6846,180.36,180.29,108.42]
[1753887278170,3.14,180.35,180.29,108.42]
[1753887278764,3.14,180.35,180.34,5.5451]
[1753887278976,3.14,180.35,180.29,114.11079528]
[1753887279161,3.14,180.33,180.25,5.69079528]
[1753887279468,3.14,180.29,180.21,486.65079528]
[1753887279764,5.69079528,180.28,180.21,108.48]
[1753887279973,8.6873,180.27,180.21,108.48]
[1753887280174,3.14,180.27,180.21,108.48]
[1753887280565,3.14,180.4,180.23,5.69079528]
[1753887280868,3.14,180.35,180.27,5.69079528]
[1753887281177,3.14,180.43,180.3,5.69079528]
[1753887281474,3.14,180.41,180.3,5.69079528]
[1753887282062,8.6832,180.41,180.3,5.69079528]
[1753887282267,3.14,180.4,180.3,5.69079528]
[1753887282670,3.14,180.39,180.3,5.69079528]
[1753887282972,3.14,180.39,180.27,108.88]
[1753887283165,3.14,180.38,180.3,5.69079528]
[1753887283770,3.14,180.36,180.28,114.71079528]
[1753887283976,3.14,180.36,180.3,5.69079528]
[1753887284271,3.14,180.36,180.34,5.5449]
[1753887284469,3.14,180.36,180.28,109.02]
[1753887284470,3.14,180.41,180.33,5.69079528]
[1753887284666,5.5433,180.4,180.35,5.5447]
[1753887284871,3.14,180.37,180.28,109.02]
[1753887285075,3.14,180.36,180.32,5.69079528]
[1753887285367,3.14,180.4,180.32,5.69079528]
[1753887285772,3.14,180.39,180.32,5.69079528]
[1753887286473,3.14,180.38,180.32,5.69079528]
[1753887287073,3.14,180.38,180.34,5.545]
[1753887287270,3.14,180.38,180.32,5.69079528]
[1753887287466,3.14,180.37,180.32,5.69079528]
[1753887287676,3.14,180.35,180.32,5.69079528]
[1753887288072,3.14,180.41,180.32,5.69079528]
[1753887288480,5.69079528,180.4,180.3,114.49079528]
[1753887288780,5.69079528,180.4,180.24,372.68]
[1753887288781,3.14,180.39,180.24,372.68]
[1753887289079,3.14,180.36,180.29,5.69079528]
[1753887289277,5.69079528,180.36,180.27,5.69079528]
[1753887289575,3.14,180.33,180.26,108.74]
[1753887289970,5.5461,180.31,180.26,114.2876]
[1753887290172,3.14,180.3,180.26,108.74]
[1753887290364,3.14,180.32,180.26,108.74]
[1753887290566,3.14,180.31,180.3,5.5463]
[1753887290772,3.14,180.35,180.26,114.43079528]
[1753887291079,3.14,180.34,180.26,114.43079528]
[1753887291775,3.14,180.31,180.26,108.74]
[1753887292072,3.14,180.32,180.29,5.5466]
[1753887292273,3.14,180.32,180.26,108.74]
[1753887292776,3.14,180.32,180.27,5.547]
[1753887292977,3.14,180.32,180.26,108.74]
[1753887293273,3.14,180.33,180.26,108.74]
[1753887293673,3.14,180.33,180.26,114.43079528]
[1753887294373,3.14,180.33,180.26,108.74]
[1753887295172,5.69079528,180.34,180.26,108.74]
[1753887295375,3.14,180.33,180.26,108.74]
[1753887296374,3.14,180.3,180.24,372.68]
[1753887296778,3.14,180.26,180.2,5.69079528]
[1753887296984,3.14,180.26,180.2,108.4]
[1753887297276,5.5478,180.26,180.22,5.5486]
[1753887297469,3.14,180.24,180.2,108.4]
[1753887297674,3.14,180.23,180.2,108.4]
[1753887297870,3.14,180.22,180.2,108.4]
[1753887298074,3.14,180.22,180.21,5.5489]
[1753887298273,3.14,180.29,180.2,108.4]
[1753887298473,3.14,180.29,180.23,5.5485]
[1753887298680,3.14,180.29,180.2,108.4]
[1753887299071,3.16,180.26,180.2,108.4]
[1753887299478,3.16,180.26,180.17,5.69079528]
[1753887299875,8.85079528,180.26,180.17,5.69079528]
[1753887300183,8.85079528,180.26,180.13,108.44]
[1753887300184,3.16,180.28,180.19,5.69079528]
[1753887300381,3.16,180.26,180.13,108.44]
[1753887300578,3.16,180.24,180.18,5.5498]
[1753887300879,3.16,180.24,180.13,114.13079528]
[1753887301083,3.16,180.24,180.15,5.69079528]
[1753887301279,3.16,180.24,180.17,5.69079528]
[1753887301682,3.16,180.28,180.21,5.69079528]
[1753887302182,5.69079528,180.28,180.18,5.69079528]
[1753887302375,5.69079528,180.24,180.14,5.69079528]
[1753887302578,3.16,180.23,180.17,5.69079528]
[1753887303184,3.16,180.25,180.17,5.69079528]
[1753887303782,3.16,180.23,180.14,108.6]
[1753887304189,5.69079528,180.2,180.09,126.21648225]
[1753887304489,3.16,180.15,180.07,114.27079528]
[1753887304683,3.16,180.15,180.09,5.69079528]
[1753887304878,3.16,180.17,180.11,5.69079528]
[1753887306985,3.16,180.17,180.07,108.58]
[1753887307188,3.16,180.17,180.1,5.69079528]
[1753887307384,5.69079528,180.22,180.1,5.69079528]
[1753887307385,5.5498,180.19,180.15,5.5507]
[1753887307590,3.16,180.16,180.15,5.5507]
[1753887311595,3.16,180.21,180.12,5.69079528]
[1753887311894,3.16,180.25,180.16,5.69079528]
[1753887312088,5.69079528,180.26,180.2,5.5492]
[1753887312391,3.16,180.31,180.25,5.69079528]
[1753887312693,3.16,180.31,180.27,5.5471]
[1753887312882,3.16,180.3,180.25,5.69079528]
[1753887313086,3.16,180.34,180.28,5.5468]
[1753887313284,3.16,180.34,180.23,5.69079528]
[1753887313488,3.16,180.3,180.23,5.69079528]
[1753887313687,5.69079528,180.29,180.19,5.69079528]
[1753887313892,5.5481,180.25,180.17,5.69079528]
[1753887314088,3.16,180.24,180.17,5.69079528]
[1753887314591,3.16,180.37,180.21,5.69079528]
[1753887314790,3.16,180.31,180.23,5.69079528]
[1753887315091,3.16,180.31,180.16,108.98]
[1753887315092,3.16,180.31,180.18,5.69079528]
[1753887315294,3.16,180.31,180.16,108.98]
[1753887315490,3.16,180.31,180.22,5.69079528]
[1753887315686,3.16,180.28,180.22,5.69079528]
[1753887315883,8.85079528,180.28,180.21,5.5488]
[1753887316091,3.16,180.27,180.21,5.5488]
[1753887316284,3.16,180.27,180.23,5.5482]
[1753887316483,3.16,180.26,180.23,5.5482]
[1753887316698,3.16,180.25,180.2,5.69079528]
[1753887316897,3.16,180.24,180.23,5.5485]
[1753887317188,5.5478,180.26,180.2,5.69079528]
[1753887317388,5.69079528,180.28,180.18,5.69079528]
[1753887317591,3.16,180.25,180.16,5.69079528]
[1753887317896,3.16,180.23,180.16,5.5505]
[1753887318096,3.16,180.23,180.13,5.69079528]
[1753887318287,5.5494,180.2,180.13,5.69079528]
[1753887318491,3.16,180.18,180.16,5.5504]
[1753887318686,3.16,180.17,180.13,5.69079528]
[1753887319194,3.16,180.17,180.16,5.5506]
[1753887319898,3.16,180.2,180.13,5.69079528]
[1753887320498,5.5505,180.17,180.1,108.86]
[1753887320797,3.16,180.16,180.1,108.86]
[1753887321192,3.16,180.16,180.13,5.5513]
[1753887322697,3.16,180.16,180.1,108.86]
[1753887323094,11.0938,180.29,180.14,5.551]
[1753887323095,3.16,180.15,180.14,5.551]
[1753887323795,3.16,180.19,180.1,108.86]
[1753887323996,3.16,180.15,180.1,108.86]
[1753887324196,3.16,180.19,180.1,108.86]
[1753887324398,5.5504,180.17,180.13,5.5515]
[1753887324592,3.16,180.16,180.13,5.5515]
[1753887325102,3.16,180.15,180.1,108.86]
[1753887325298,3.16,180.15,180.05,378.51079528]
[1753887325593,3.16,180.15,180.07,5.69079528]
[1753887325798,3.16,180.15,180.09,5.69079528]
[1753887326298,3.16,180.14,180.13,5.5513]
[1753887326695,22.96559123,180.29,180.16,5.5506]
[1753887326696,3.16,180.17,180.16,5.5506]
[1753887327303,3.16,180.26,180.16,113.98]
[1753887327499,83.53865925,180.3,180.21,5.69079528]
[1753887327500,3.16,180.25,180.21,5.69079528]
[1753887327796,3.16,180.25,180.24,5.548]
[1753887328403,7.18720604,180.25,180.24,5.548]
[1753887329600,4.02720604,180.25,180.19,5.69079528]
[1753887329798,4.02720604,180.24,180.16,108.42]
[1753887330002,3.07,180.2,180.19,5.5497]
[1753887330306,3.07,180.22,180.18,5.69079528]
[1753887330806,3.07,180.22,180.21,5.5491]
[1753887331004,5.69079528,180.29,180.16,108.42]
[1753887331005,3.07,180.29,180.16,108.42]
[1753887331205,3.07,180.29,180.28,5.5469]
[1753887331400,3.07,180.29,180.27,5.69079528]
[1753887331898,4.63604696,180.36,180.27,5.69079528]
[1753887332101,4.13194366,180.35,180.28,5.5469]
[1753887332304,4.13194366,180.34,180.25,5.69079528]
[1753887332502,3.07,180.28,180.25,11.23839528]
[1753887332703,10.32684224,180.35,180.25,5.69079528]
[1753887332906,3.07,180.33,180.25,5.69079528]
[1753887333104,3.07,180.29,180.23,5.69079528]
[1753887334108,5.547,180.28,180.24,5.5479]
[1753887334299,3.07,180.27,180.23,5.69079528]
[1753887334800,3.07,180.29,180.18,114.15079528]
[1753887335205,3.07,180.29,180.23,5.69079528]
[1753887335601,3.07,180.29,180.11,11.1038]
[1753887335811,3.07,180.25,180.22,5.5485]
[1753887335996,3.07,180.24,180.17,5.69079528]
[1753887336307,3.07,180.24,180.13,108.44]
[1753887336506,3.07,180.24,180.16,5.69079528]
[1753887336899,5.5487,180.23,180.19,5.5495]
[1753887337100,3.07,180.22,180.16,5.69079528]
[1753887337299,3.07,180.22,180.12,5.69079528]
[1753887337509,3.07,180.16,180.13,5.5513]
[1753887337706,3.07,180.2,180.12,5.69079528]
[1753887338008,3.07,180.23,180.16,5.69079528]
[1753887338211,5.69079528,180.28,180.18,5.69079528]
[1753887338509,3.07,180.2,180.18,5.69079528]
[1753887338703,5.69079528,180.26,180.16,5.69079528]
[1753887338902,3.07,180.25,180.16,5.69079528]
[1753887339304,3.07,180.19,180.14,5.69079528]
[1753887339505,3.07,180.19,180.12,5.69079528]
[1753887339905,3.07,180.18,180.14,5.5512]
[1753887340101,3.07,180.18,180.12,5.69079528]
[1753887340604,5.69079528,180.22,180.14,5.551]
[1753887340605,3.07,180.17,180.14,5.551]
[1753887340805,3.07,180.16,180.14,5.551]
[1753887341002,3.07,180.15,180.13,5.5515]
[1753887341203,3.07,180.14,180.1,5.69079528]
[1753887341408,3.07,180.13,180.1,5.69079528]
[1753887341599,3.07,180.16,180.1,5.69079528]
[1753887341802,3.07,180.16,180.07,108.3]
[1753887341997,3.07,180.16,180.1,5.69079528]
[1753887342205,3.07,180.18,180.12,5.69079528]
[1753887342412,3.07,180.18,180.14,5.69079528]
[1753887342711,3.07,180.23,180.14,5.69079528]
[1753887342902,3.07,180.23,180.18,5.69079528]
[1753887343102,3.07,180.21,180.07,113.99079528]
[1753887343305,3.07,180.27,180.2,5.69079528]
[1753887344308,3.07,180.27,180.22,5.69079528]
[1753887344505,3.07,180.3,180.22,5.69079528]
[1753887344706,3.07,180.3,180.24,5.69079528]
[1753887346210,3.07,180.29,180.26,5.69079528]
[1753887346511,3.07,180.36,180.26,5.69079528]
[1753887346705,3.07,180.34,180.26,5.69079528]
[1753887346906,4.14900137,180.33,180.26,5.69079528]
[1753887347105,3.07,180.32,180.26,5.69079528]
[1753887349504,3.07,180.37,180.3,5.69079528]
[1753887349905,3.07,180.37,180.18,373.02]
[1753887350108,3.07,180.37,180.3,5.69079528]
[1753887352212,3.07,180.43,180.36,5.69079528]
[1753887352411,3.07,180.43,180.26,108.02]
[1753887352613,3.07,180.43,180.29,5.69079528]
[1753887352813,3.07,180.43,180.37,5.69079528]
[1753887355220,3.07,180.43,180.33,5.69079528]
[1753887355519,3.07,180.41,180.31,5.69079528]
[1753887356312,3.07,180.39,180.31,5.69079528]
[1753887356514,3.07,180.39,180.33,5.69079528]
[1753887356916,5.69079528,180.39,180.29,5.69079528]
[1753887357114,3.07,180.38,180.29,5.69079528]
[1753887358116,3.07,180.37,180.29,5.69079528]
[1753887358523,3.07,180.37,180.27,5.69079528]
[1753887359511,3.21,180.35,180.26,5.69079528]
[1753887360518,3.21,180.35,180.22,108.3]
[1753887360519,3.21,180.33,180.24,5.69079528]
[1753887361419,8.90079528,180.33,180.24,5.69079528]
[1753887361620,3.21,180.3,180.21,5.69079528]
[1753887361818,3.21,180.28,180.19,5.69079528]
[1753887363815,3.21,180.27,180.19,5.69079528]
[1753887365321,3.21,180.27,180.18,373.02]
[1753887365522,3.21,180.27,180.18,378.71079528]
[1753887366620,3.21,180.27,180.2,5.69079528]
[1753887368228,3.21,180.29,180.22,5.69079528]
[1753887370617,3.21,180.29,180.18,373.02]
[1753887370618,5.69079528,180.4,180.24,5.69079528]
[1753887370819,3.21,180.31,180.25,108.02]
[1753887375632,3.21,180.31,180.26,5.69079528]
[1753887378331,8.90079528,180.31,180.25,108.02]
[1753887378531,3.21,180.3,180.25,108.02]
[1753887378934,3.21,180.3,180.21,5.69079528]
[1753887379134,5.69079528,180.27,180.18,373.02]
[1753887379437,3.21,180.26,180.19,107.52]
[1753887379636,3.21,180.26,180.19,113.21079528]
[1753887380639,5.69079528,180.25,180.18,373.02]
[1753887380838,5.69079528,180.23,180.18,107.44]
[1753887381038,3.21,180.22,180.18,107.44]
[1753887382139,5.69079528,180.27,180.18,107.44]
[1753887382437,3.21,180.23,180.19,5.69079528]
[1753887382836,3.21,180.28,180.27,5.5472]
[1753887383337,3.21,180.28,180.24,107.42]
[1753887383338,3.21,180.31,180.25,5.69079528]
[1753887383736,3.21,180.31,180.3,5.5463]
[1753887384643,3.21,180.31,180.29,5.5465]
[1753887384836,3.21,180.31,180.24,107.42]
[1753887385037,3.21,180.31,180.24,113.11079528]
[1753887385237,3.21,180.31,180.28,5.5467]
[1753887385438,3.21,180.31,180.24,113.11079528]
[1753887385642,3.21,180.31,180.28,5.5466]
[1753887385841,3.21,180.31,180.24,113.11079528]
[1753887386337,3.21,180.31,180.3,5.5463]
[1753887389842,3.21,180.31,180.23,5.69079528]
[1753887390047,3.05,180.3,180.21,5.69079528]
[1753887390257,5.5473,180.27,180.19,5.69079528]
[1753887390449,3.05,180.26,180.2,107.08]
[1753887390654,5.69079528,180.25,180.2,107.08]
[1753887390859,3.05,180.23,180.2,112.6293]
[1753887391349,3.05,180.21,180.13,5.69079528]
[1753887391552,3.05,180.21,180.14,107.04]
[1753887391954,8.74079528,180.21,180.11,5.69079528]
[1753887392153,5.69079528,180.19,180.07,372.86]
[1753887392355,3.05,180.16,180.13,5.5512]
[1753887392556,3.05,180.16,180.08,107.02]
[1753887392745,22.96589123,180.29,180.12,5.69079528]
[1753887392746,3.05,180.18,180.12,5.69079528]
[1753887393353,5.5504,180.17,180.13,5.5513]
[1753887393560,3.05,180.13,180.07,372.86]
[1753887394057,3.05,180.12,180.07,372.86]
[1753887394263,8.74079528,180.12,180.06,231.40082677]
[1753887394552,3.05,180.09,180.05,5.5538]
[1753887394747,3.05,180.07,180.01,107.36]
[1753887394951,3.05,180.05,180.01,107.36]
[1753887395152,3.05,180.03,180.0,5.5553]
[1753887395358,3.05,180.03,179.97,480.3]
[1753887395751,3.05,180.03,179.97,107.4]
[1753887395959,5.69079528,180.04,179.97,107.4]
[1753887395960,3.05,180.01,179.97,107.4]
[1753887396158,3.05,180.0,179.87,372.98]
[1753887396360,5.69079528,180.0,179.89,5.69079528]
[1753887396554,3.05,179.99,179.88,114.11801272]
[1753887396748,3.05,179.97,179.88,114.11801272]
[1753887397151,3.05,179.97,179.88,108.42721744]
[1753887397361,3.05,179.97,179.88,114.11801272]
[1753887398352,8.74079528,180.04,179.94,5.69079528]
[1753887398556,3.05,180.03,179.94,113.11079528]
[1753887398750,3.05,180.01,179.94,107.42]
[1753887398954,3.05,179.99,179.94,107.42]
[1753887399151,5.69079528,180.02,179.94,107.42]
[1753887399355,124.0,180.14,179.94,107.42]
[1753887399356,3.05,180.01,179.95,5.69079528]
[1753887399557,3.05,180.01,179.94,107.42]
[1753887399859,3.05,180.01,179.94,113.11079528]
[1753887400255,3.05,180.01,179.94,107.42]
[1753887400657,3.05,180.01,179.95,5.557]
[1753887401264,3.05,180.01,179.94,107.42]
[1753887401752,3.05,180.01,180.0,5.5555]
[1753887402355,3.05,180.08,179.99,5.69079528]
[1753887402555,3.05,180.08,180.01,5.69079528]
[1753887403355,3.05,180.08,180.0,107.52]
[1753887403854,3.05,180.08,180.06,5.5534]
[1753887404057,3.05,180.08,180.05,5.69079528]
[1753887404362,3.05,180.11,180.05,5.69079528]
[1753887404760,3.05,180.11,180.07,5.5531]
[1753887404962,3.05,180.11,180.05,5.69079528]
[1753887405265,3.05,180.11,180.07,5.69079528]
[1753887405963,3.05,180.14,180.09,5.69079528]
[1753887406167,3.05,180.13,180.09,5.69079528]
[1753887406359,3.05,180.18,180.09,5.69079528]
[1753887406560,3.05,180.18,180.11,5.69079528]
[1753887406761,3.05,180.18,180.1,9.37332069]
[1753887406962,3.05,180.17,180.15,5.5508]
[1753887407265,3.05,180.16,180.15,5.5508]
[1753887407460,3.05,180.19,180.1,9.37332069]
[1753887408058,3.05,180.19,180.16,5.5505]
[1753887408260,3.05,180.18,180.16,5.5505]
[1753887408758,9.37332069,180.23,180.1,9.37332069]
[1753887408961,3.05,180.22,180.1,9.37332069]
[1753887410469,3.05,180.17,180.1,9.37332069]
[1753887410861,3.05,180.17,180.12,5.5518]
[1753887411062,3.05,180.17,180.07,116.65332069]
[1753887411657,5.5506,180.16,180.07,116.65332069]
[1753887411858,3.05,180.15,180.07,116.65332069]
[1753887412469,3.05,180.14,180.09,5.5527]
[1753887412666,3.05,180.14,180.04,9.37332069]
[1753887413058,3.05,180.13,180.08,5.5529]
[1753887413467,5.5515,180.13,180.08,5.5529]
[1753887413669,3.05,180.12,180.08,5.5529]
[1753887413864,9.37332069,180.17,180.09,5.5527]
[1753887414064,3.05,180.16,180.04,9.37332069]
[1753887414468,3.05,180.16,180.08,5.5528]
[1753887414769,3.05,180.13,180.04,9.37332069]
[1753887415064,3.05,180.13,180.07,5.5531]
[1753887415266,3.05,180.13,180.02,107.18]
[1753887415867,3.05,180.1,180.06,5.5534]
[1753887416065,9.37332069,180.14,180.02,107.18]
[1753887416265,3.05,180.1,180.02,107.18]
[1753887416464,3.05,180.09,180.02,107.18]
[1753887417067,3.05,180.09,180.0,480.36]
[1753887417670,3.05,180.13,180.05,5.5539]
[1753887418174,3.05,180.09,180.05,5.5538]
[1753887418361,3.05,180.13,180.02,9.37332069]
[1753887418566,5.5512,180.14,180.1,5.5523]
[1753887418967,3.24,180.13,180.0,489.73332069]
[1753887419162,5.5519,180.12,180.0,489.73332069]
[1753887419365,3.24,180.1,180.0,373.28]
[1753887419764,9.37332069,180.11,180.0,373.28]
[1753887419968,3.24,180.1,180.0,373.28]
[1753887420178,8.7925,180.1,180.04,5.554]
[1753887420370,3.24,180.09,180.0,382.65332069]
[1753887420765,3.24,180.09,180.08,5.553]
[1753887421668,3.24,180.16,180.04,106.94]
[1753887422080,5.5515,180.13,180.04,106.94]
[1753887422272,3.24,180.16,180.04,106.94]
[1753887422672,3.24,180.16,180.06,9.37332069]
[1753887423175,3.24,180.14,180.1,5.5522]
[1753887423575,3.24,180.14,180.04,116.31332069]
[1753887423773,3.24,180.14,180.07,5.5533]
[1753887423977,3.24,180.14,180.04,116.31332069]
[1753887424374,3.24,180.13,180.04,116.31332069]
[1753887425075,3.24,180.15,180.04,116.31332069]
[1753887425780,3.24,180.14,180.12,5.5516]
[1753887426078,3.24,180.15,180.07,9.37332069]
[1753887426280,3.24,180.16,180.12,5.5516]
[1753887426779,3.24,180.15,180.07,5.69712026]
[1753887427380,3.24,180.15,180.12,5.5518]
[1753887427679,3.24,180.15,180.07,5.69712026]
[1753887428179,3.24,180.14,180.07,5.69712026]
[1753887430179,3.24,180.14,180.09,5.69712026]
[1753887430379,3.24,180.12,180.09,5.69712026]
[1753887430679,3.24,180.12,180.11,5.5521]
[1753887431276,3.24,180.17,180.13,5.5512]
[1753887431879,8.7905,180.17,180.12,5.5517]
[1753887432077,3.24,180.16,180.12,5.5517]
[1753887432278,3.24,180.16,180.09,5.69712026]
[1753887432577,8.93712026,180.16,180.06,5.69712026]
[1753887432780,3.24,180.15,180.06,5.69712026]
[1753887433177,3.24,180.14,180.08,5.69712026]
[1753887433781,3.24,180.14,180.1,5.5521]
[1753887434085,3.24,180.14,180.08,5.69712026]
[1753887434382,3.24,180.12,180.09,5.5527]
[1753887434675,3.24,180.12,180.05,112.35712026]
[1753887437883,3.24,180.12,180.1,5.5524]
[1753887438084,3.24,180.12,180.05,112.35712026]
[1753887438380,3.24,180.12,180.09,5.5526]
[1753887438579,3.24,180.12,180.05,112.35712026]
[1753887438786,3.24,180.12,180.07,5.5531]
[1753887438983,5.69712026,180.15,180.05,112.35712026]
[1753887439184,3.24,180.12,180.07,5.69712026]
[1753887439381,3.24,180.12,180.11,5.5521]
[1753887439584,3.24,180.18,180.09,5.69712026]
[1753887439779,3.24,180.16,180.09,5.69712026]
[1753887440083,5.69712026,180.19,180.13,5.5515]
[1753887440388,3.24,180.18,180.11,5.69712026]
[1753887440683,3.24,180.17,180.15,5.5509]
[1753887441183,3.24,180.17,180.11,5.69712026]
[1753887441184,3.24,180.17,180.16,5.5506]
[1753887441390,3.24,180.19,180.13,5.69712026]
[1753887443072,3.24,180.19,180.16,5.5504]
[1753887443278,8.7897,180.19,180.16,5.5504]
[1753887443579,3.24,180.17,180.13,5.69712026]
[1753887443781,5.5494,180.2,180.13,5.69712026]
[1753887444086,3.24,180.19,180.13,5.69712026]
[1753887444288,8.7897,180.19,180.16,5.5504]
[1753887444580,3.24,180.17,180.16,5.5504]
[1753887444982,3.24,180.17,180.15,5.5507]
[1753887445287,3.24,180.17,180.1,112.31712026]
[1753887445486,5.5507,180.16,180.1,106.62]
[1753887445781,3.24,180.18,180.12,5.69712026]